Workbook

Sheet Semester_1
F1: Специалност "Медицинска физика"
A2: код на спец. | F2: за випуска, започнал през 2015 уч.година
A3: № | B3: код на дисциплината | F3: Наименование на учебната дисциплината | G3: Вид – З, И, Ф | H3: семестър | I3: ECTS кредити | J3: Часове - общ брой | N3: Седмична заетост | O3: Форма на оценяване* - и, то, ки, прод
J4: Всичко | K4: Лекции | L4: Семинарни занятия | M4: практически упр. / хоспетиране
A5: 1 | B5: 2 | F5: 3 | G5: 4 | H5: 5 | I5: 6 | J5: 7 | K5: 8 | L5: 9 | M5: 10 | N5: 11 | O5: 12
A6: Задължителни дисциплини
F7: Математика 1 | G7: З | H7: 1 | I7: 10 | J7: 300 | K7: 60 | L7: 60 | M7: 0 | N7: 4 4 0 | O7: и
F8: Увод в биологията | G8: З | H8: 1 | I8: 4.5 | J8: 135 | K8: 60 | L8: 0 | M8: 0 | N8: 4 0 0 | O8: и
F9: Механика | G9: З | H9: 1 | I9: 7 | J9: 210 | K9: 60 | L9: 30 | M9: 0 | N9: 4 2 0 | O9: и
F10: Лабораторен практикум Механика | G10: З | H10: 1 | I10: 4.5 | J10: 135 | K10: 0 | L10: 0 | M10: 45 | N10: 0 0 3 | O10: то
F11: Увод в програмирането | G11: З | H11: 1 | I11: 4 | J11: 120 | K11: 15 | L11: 0 | M11: 30 | N11: 1 0 2 | O11: то
H12: Сума: | I12: =SUM(I7:I11) -> 30 | J12: =SUM(J7:J11) -> 900 | K12: =SUM(K7:K11) -> 195 | L12: =SUM(L7:L11) -> 90 | M12: =SUM(M7:M11) -> 75 | N12: 24
F13: Общо аудиторна заетост: | K13: =(K12+L12+M12) -> 360
F15: Специалност "Медицинска физика"
A16: код на спец. | F16: за випуска, започнал през 2015 уч.година
A17: № | B17: код на дисциплината | F17: Наименование на учебната дисциплината | G17: Вид – З, И, Ф | H17: семестър | I17: ECTS кредити | J17: Часове - общ брой | N17: Седмична заетост | O17: Форма на оценяване* - и, то, ки, прод
J18: Всичко | K18: Лекции | L18: Семинарни занятия | M18: практически упр. / хоспетиране
A19: 1 | B19: 2 | F19: 3 | G19: 4 | H19: 5 | I19: 6 | J19: 7 | K19: 8 | L19: 9 | M19: 10 | N19: 11 | O19: 12
A20: Задължителни дисциплини
F21: Математика 1 | G21: З | H21: 1 | I21: 12.5 | J21: 375 | K21: 60 | L21: 60 | M21: 60 | N21: 4 4 4 | O21: и
F22: Увод в биологията | G22: З | H22: 1 | I22: 2 | J22: 60 | K22: 30 | L22: 0 | M22: 0 | N22: 2 0 0 | O22: и
F23: Механика | G23: З | H23: 1 | I23: 7 | J23: 210 | K23: 60 | L23: 30 | M23: 0 | N23: 4 2 0 | O23: и
F24: Лабораторен практикум Механика | G24: З | H24: 1 | I24: 4.5 | J24: 135 | K24: 0 | L24: 0 | M24: 45 | N24: 0 0 3 | O24: то
F25: Увод в програмирането | G25: З | H25: 1 | I25: 4 | J25: 120 | K25: 15 | L25: 0 | M25: 30 | N25: 1 0 2 | O25: то
H26: Сума: | I26: =SUM(I21:I25) -> 30 | J26: =SUM(J21:J25) -> 900 | K26: =SUM(K21:K25) -> 165 | L26: =SUM(L21:L25) -> 90 | M26: =SUM(M21:M25) -> 135 | N26: =(12+2+6+3+3) -> 26
F27: Общо аудиторна заетост: | K27: =(K26+L26+M26) -> 390

Sheet Semester_2
F1: Специалност "Медицинска физика"
A2: код на спец. | F2: за випуска, започнал през 2015 уч.година
A3: № | B3: код на дисциплината | F3: Наименование на учебната дисциплината | G3: Вид – З, И, Ф | H3: семестър | I3: ECTS кредити | J3: Часове - общ брой | N3: Седмична заетост | O3: Форма на оценяване* - и, то, ки, прод
J4: Всичко | K4: Лекции | L4: Семинарни занятия | M4: практически упр. / хоспетиране
A5: 1 | B5: 2 | F5: 3 | G5: 4 | H5: 5 | I5: 6 | J5: 7 | K5: 8 | L5: 9 | M5: 10 | N5: 11 | O5: 12
A6: Задължителни дисциплини
F7: Математика 2 | G7: З | H7: 2 | I7: 9 | J7: 270 | K7: 60 | L7: 60 | M7: 0 | N7: 4 4 0 | O7: и
F8: Молекулна физика | G8: З | H8: 2 | I8: 4.5 | J8: 135 | K8: 30 | L8: 30 | M8: 0 | N8: 2 2 0 | O8: и
F9: Лабораторен практикум Молекулна физика | G9: З | H9: 2 | I9: 4 | J9: 120 | K9: 0 | L9: 0 | M9: 45 | N9: 0 0 3 | O9: то
F10: Химия | G10: З | H10: 2 | I10: 6 | J10: 180 | K10: 45 | L10: 0 | M10: 30 | N10: 3 0 2 | O10: и
F11: Основи на анатомията и физиологията на човека | G11: З | H11: 2 | I11: 6.5 | J11: 195 | K11: 60 | L11: 0 | M11: 30 | N11: 4 0 2 | O11: и
H12: Сума: | I12: =SUM(I7:I11) -> 30 | J12: =SUM(J7:J11) -> 900 | K12: =SUM(K7:K11) -> 195 | L12: =SUM(L7:L11) -> 90 | M12: =SUM(M7:M11) -> 105 | N12: 26
F13: Общо аудиторна заетост: | K13: =(K12+L12+M12) -> 390
F15: Специалност "Медицинска физика"
A16: код на спец. | F16: за випуска, започнал през 2015 уч.година
A17: № | B17: код на дисциплината | F17: Наименование на учебната дисциплината | G17: Вид – З, И, Ф | H17: семестър | I17: ECTS кредити | J17: Часове - общ брой | N17: Седмична заетост | O17: Форма на оценяване* - и, то, ки, прод
J18: Всичко | K18: Лекции | L18: Семинарни занятия | M18: практически упр. / хоспетиране
A19: 1 | B19: 2 | F19: 3 | G19: 4 | H19: 5 | I19: 6 | J19: 7 | K19: 8 | L19: 9 | M19: 10 | N19: 11 | O19: 12
A20: Задължителни дисциплини
F21: Математика 2 | G21: З | H21: 2 | I21: 11.5 | J21: =(I21*30) -> 345 | K21: 60 | L21: 60 | M21: 45 | N21: 4 4 3 | O21: и
F22: Молекулна физика | G22: З | H22: 2 | I22: 4.5 | J22: 135 | K22: 30 | L22: 30 | M22: 0 | N22: 2 2 0 | O22: и
F23: Лабораторен практикум Молекулна физика | G23: З | H23: 2 | I23: 4 | J23: 120 | K23: 0 | L23: 0 | M23: 45 | N23: 0 0 3 | O23: то
F24: Основи на химията и биохимията | G24: З | H24: 3 | I24: 10 | J24: =(I24*30) -> 300 | K24: 60 | L24: 15 | M24: 45 | N24: 4 1 3 | O24: и
H25: Сума: | I25: =SUM(I21:I24) -> 30 | J25: =SUM(J21:J24) -> 900 | K25: =SUM(K21:K24) -> 150 | L25: =SUM(L21:L24) -> 105 | M25: =SUM(M21:M24) -> 135 | N25: =(11+4+3+8) -> 26
F26: Общо аудиторна заетост: | K26: =(K25+L25+M25) -> 390

Sheet Semester_3
F1: Специалност "Медицинска физика"
A2: код на спец. | F2: за випуска, започнал през 2015 уч.година
A3: № | B3: код на дисциплината | F3: Наименование на учебната дисциплината | G3: Вид – З, И, Ф | H3: семестър | I3: ECTS кредити | J3: Часове - общ брой | N3: Седмична заетост | O3: Форма на оценяване* - и, то, ки, прод
J4: Всичко | K4: Лекции | L4: Семинарни занятия | M4: практически упр. / хоспетиране
A5: 1 | B5: 2 | F5: 3 | G5: 4 | H5: 5 | I5: 6 | J5: 7 | K5: 8 | L5: 9 | M5: 10 | N5: 11 | O5: 12
A6: Задължителни дисциплини
F7: Вероятности и физическа статистика | G7: З | H7: 3 | I7: 5 | J7: 150 | K7: 30 | L7: 30 | M7: 0 | N7: 2 2 0 | O7: и
F8: Математични методи на физиката - 1 | G8: З | H8: 3 | I8: 7 | J8: 210 | K8: 45 | L8: 45 | M8: 0 | N8: 3 3 0 | O8: и
F9: Електричество и магнетизъм | G9: З | H9: 3 | I9: 7 | J9: 210 | K9: 60 | L9: 30 | M9: 0 | N9: 4 2 0 | O9: и
F10: Лабораторен практикум Електричество и магнетизъм | G10: З | H10: 3 | I10: 4.5 | J10: 135 | K10: 0 | L10: 0 | M10: 45 | N10: 0 0 3 | O10: то
F11: Основи на биохимията | G11: З | H11: 3 | I11: 7.5 | J11: 225 | K11: 45 | L11: 15 | M11: 30 | N11: 3 1 2 | O11: и
H12: Сума: | I12: =SUM(I7:I11) -> 31 | J12: =SUM(J7:J11) -> 930 | K12: =SUM(K7:K11) -> 180 | L12: =SUM(L7:L11) -> 120 | M12: =SUM(M7:M11) -> 75 | N12: 25
F13: Общо аудиторна заетост: | K13: =(K12+L12+M12) -> 375
F15: Специалност "Медицинска физика"
A16: код на спец. | F16: за випуска, започнал през 2015 уч.година
A17: № | B17: код на дисциплината | F17: Наименование на учебната дисциплината | G17: Вид – З, И, Ф | H17: семестър | I17: ECTS кредити | J17: Часове - общ брой | N17: Седмична заетост | O17: Форма на оценяване* - и, то, ки, прод
J18: Всичко | K18: Лекции | L18: Семинарни занятия | M18: практически упр. / хоспетиране
A19: 1 | B19: 2 | F19: 3 | G19: 4 | H19: 5 | I19: 6 | J19: 7 | K19: 8 | L19: 9 | M19: 10 | N19: 11 | O19: 12
A20: Задължителни дисциплини
F21: Вероятности и физическа статистика | G21: З | H21: 3 | I21: 5 | J21: 150 | K21: 30 | L21: 30 | M21: 0 | N21: 2 2 0 | O21: и
F22: Математични методи на физиката - 1 | G22: З | H22: 3 | I22: 7 | J22: 210 | K22: 45 | L22: 45 | M22: 0 | N22: 3 3 0 | O22: и
F23: Електричество и магнетизъм | G23: З | H23: 3 | I23: 7 | J23: 210 | K23: 60 | L23: 30 | M23: 0 | N23: 4 2 0 | O23: и
F24: Лабораторен практикум Електричество и магнетизъм | G24: З | H24: 3 | I24: 4.5 | J24: 135 | K24: 0 | L24: 0 | M24: 45 | N24: 0 0 3 | O24: то
F25: Основи на анатомията и физиологията на човека | G25: З | H25: 2 | I25: 6.5 | J25: 195 | K25: 60 | L25: 0 | M25: 30 | N25: 4 0 2 | O25: и
H26: Сума: | I26: =SUM(I21:I25) -> 30 | J26: =SUM(J21:J25) -> 900 | K26: =SUM(K21:K25) -> 195 | L26: =SUM(L21:L25) -> 105 | M26: =SUM(M21:M25) -> 75 | N26: 25
F27: Общо аудиторна заетост: | K27: =(K26+L26+M26) -> 375

Sheet Semester_4
F1: Специалност "Медицинска физика"
A2: код на спец. | F2: за випуска, започнал през 2015 уч.година
A3: № | B3: код на дисциплината | F3: Наименование на учебната дисциплината | G3: Вид – З, И, Ф | H3: семестър | I3: ECTS кредити | J3: Часове - общ брой | N3: Седмична заетост | O3: Форма на оценяване* - и, то, ки, прод
J4: Всичко | K4: Лекции | L4: Семинарни занятия | M4: практически упр. / хоспетиране
A5: 1 | B5: 2 | F5: 3 | G5: 4 | H5: 5 | I5: 6 | J5: 7 | K5: 8 | L5: 9 | M5: 10 | N5: 11 | O5: 12
A6: Задължителни дисциплини
F7: Основи на електрониката | G7: З | H7: 4 | I7: 2 | J7: 60 | K7: 30 | L7: 0 | M7: 0 | N7: 2 0 0 | O7: и
F8: Лабораторен практикум Основи на електрониката | G8: З | H8: 4 | I8: 4 | J8: 120 | K8: 0 | L8: 0 | M8: 45 | N8: 0 0 3 | O8: то
F9: Математични методи на физиката – 2 | G9: З | H9: 4 | I9: 6 | J9: 180 | K9: 45 | L9: 45 | M9: 0 | N9: 3 3 0 | O9: и
F10: Оптика | G10: З | H10: 4 | I10: 6 | J10: 180 | K10: 45 | L10: 30 | M10: 0 | N10: 3 2 0 | O10: и
F11: Лабораторен практикум Оптика | G11: З | H11: 4 | I11: 4.5 | J11: 135 | K11: 0 | L11: 0 | M11: 45 | N11: 0 0 3 | O11: то
F12: Теоретична физика -1 (Механика и електродинамика) | G12: З | H12: 4 | I12: 7.5 | J12: 225 | K12: 45 | L12: 45 | M12: 0 | N12: 3 3 0 | O12: и
H13: Сума: | I13: =SUM(I7:I12) -> 30 | J13: =SUM(J7:J12) -> 900 | K13: =SUM(K7:K12) -> 165 | L13: =SUM(L7:L12) -> 120 | M13: =SUM(M7:M12) -> 90 | N13: =(2+3+6+5+3+6) -> 25
F14: Общо аудиторна заетост: | K14: =(K13+L13+M13) -> 375

Sheet Semester_5
F1: Специалност "Медицинска физика"
A2: код на спец. | F2: за випуска, започнал през 2015 уч.година
A3: № | B3: код на дисциплината | F3: Наименование на учебната дисциплината | G3: Вид – З, И, Ф | H3: семестър | I3: ECTS кредити | J3: Часове - общ брой | N3: Седмична заетост | O3: Форма на оценяване* - и, то, ки, прод
J4: Всичко | K4: Лекции | L4: Семинарни занятия | M4: практически упр. / хоспетиране
A5: 1 | B5: 2 | F5: 3 | G5: 4 | H5: 5 | I5: 6 | J5: 7 | K5: 8 | L5: 9 | M5: 10 | N5: 11 | O5: 12
A6: Задължителни дисциплини
F7: Изчислителна физика и обработка на данни | G7: З | H7: 5 | I7: 4 | J7: 120 | K7: 30 | L7: 0 | M7: 30 | N7: 2 0 2 | O7: то
F8: Теоретична физика - 2 (Квантова механика) | G8: З | H8: 5 | I8: 5 | J8: 150 | K8: 45 | L8: 30 | M8: 0 | N8: 3 2 0 | O8: и
F9: Физика на атомите и молекулите | G9: З | H9: 5 | I9: 4.5 | J9: 135 | K9: 45 | L9: 15 | M9: 0 | N9: 3 1 0 | O9: и
F10: Лабораторен практикум Атомна физика и взаимодействие на йонизиращи лъчения с веществото | G10: З | H10: 5 | I10: 4.5 | J10: 135 | K10: 0 | L10: 0 | M10: 45 | N10: 0 0 3 | O10: то
F11: Увод в медицинската физика | G11: З | H11: 5 | I11: 3 | J11: 90 | K11: 45 | L11: 0 | M11: 0 | N11: 3 0 0 | O11: и
F12: Приложение на лазерите в медицината | G12: З | H12: 5 | I12: 3 | J12: 90 | K12: 45 | L12: 0 | M12: 0 | N12: 3 0 0 | O12: то
F13: Оптоелектронни методи в медицината | G13: З | H13: 5 | I13: 6 | J13: 180 | K13: 45 | L13: 0 | M13: 30 | N13: 3 0 2 | O13: и
H14: Сума: | I14: =SUM(I7:I13) -> 30 | J14: =SUM(J7:J13) -> 900 | K14: =SUM(K7:K13) -> 255 | L14: =SUM(L7:L13) -> 45 | M14: =SUM(M7:M13) -> 105 | N14: =(4+5+4+3+6+5) -> 27
F15: Общо аудиторна заетост: | K15: =(K14+L14+M14) -> 405

Sheet Semester_6
F1: Специалност "Медицинска физика"
A2: код на спец. | F2: за випуска, започнал през 2015 уч.година
A3: № | B3: код на дисциплината | F3: Наименование на учебната дисциплината | G3: Вид – З, И, Ф | H3: семестър | I3: ECTS кредити | J3: Часове - общ брой | N3: Седмична заетост | O3: Форма на оценяване* - и, то, ки, прод
J4: Всичко | K4: Лекции | L4: Семинарни занятия | M4: практически упр. / хоспетиране
A5: 1 | B5: 2 | F5: 3 | G5: 4 | H5: 5 | I5: 6 | J5: 7 | K5: 8 | L5: 9 | M5: 10 | N5: 11 | O5: 12
A6: Задължителни дисциплини
F7: Физика на атомното ядро и елементарните частици | G7: З | H7: 6 | I7: 4.5 | J7: 135 | K7: 45 | L7: 15 | M7: 0 | N7: 3 1 0 | O7: и
F8: Лабораторен практикум Физика на атомното ядро и елементарните частици | G8: З | H8: 6 | I8: 4.5 | J8: 135 | K8: 0 | L8: 0 | M8: 45 | N8: 0 0 3 | O8: то
F9: Медицинска биофизика | G9: З | H9: 6 | I9: 7.5 | J9: 225 | K9: 45 | L9: 15 | M9: 30 | N9: 3 1 2 | O9: и
F10: Акустични методи в медицината | G10: З | H10: 6 | I10: 3.5 | J10: 105 | K10: 30 | L10: 0 | M10: 15 | N10: 2 0 1 | O10: то
H11: Сума: | I11: =SUM(I7:I10) -> 20 | J11: =SUM(J7:J10) -> 600 | K11: =SUM(K7:K10) -> 120 | L11: =SUM(L7:L10) -> 30 | M11: =SUM(M7:M10) -> 90 | N11: =(4+3+6+3) -> 16
F12: Общо аудиторна заетост: | K12: =(K11+L11+M11) -> 240
F15: Специалност "Медицинска физика"
A16: код на спец. | F16: за випуска, започнал през 2015 уч.година
A17: № | B17: код на дисциплината | F17: Наименование на учебната дисциплината | G17: Вид – З, И, Ф | H17: семестър | I17: ECTS кредити | J17: Часове - общ брой | N17: Седмична заетост | O17: Форма на оценяване* - и, то, ки, прод
J18: Всичко | K18: Лекции | L18: Семинарни занятия | M18: практически упр. / хоспетиране
A19: 1 | B19: 2 | F19: 3 | G19: 4 | H19: 5 | I19: 6 | J19: 7 | K19: 8 | L19: 9 | M19: 10 | N19: 11 | O19: 12
A20: Задължителни дисциплини
F21: Физика на атомното ядро и елементарните частици | G21: З | H21: 6 | I21: 4.5 | J21: 135 | K21: 45 | L21: 15 | M21: 0 | N21: 3 1 0 | O21: и
F22: Лабораторен практикум Физика на атомното ядро и елементарните частици | G22: З | H22: 6 | I22: 4.5 | J22: 135 | K22: 0 | L22: 0 | M22: 45 | N22: 0 0 3 | O22: то
F23: Увод в медицинската биофизика | G23: З | H23: 6 | I23: 2 | J23: 60 | K23: 30 | L23: 0 | M23: 0 | N23: 2 0 0 | O23: и
F24: Информационни технологии (директна и мрежова комуникация на апаратура и компютри) | G24: З | H24: 6 | I24: 6 | J24: 180 | K24: 45 | L24: 0 | M24: 30 | N24: 3 0 2 | O24: и
F25: Акустични методи в медицината | G25: З | H25: 6 | I25: 3.5 | J25: 105 | K25: 30 | L25: 0 | M25: 15 | N25: 2 0 1 | O25: то
H26: Сума: | I26: =SUM(I21:I25) -> 20.5 | J26: =SUM(J21:J25) -> 615 | K26: =SUM(K21:K25) -> 150 | L26: =SUM(L21:L25) -> 15 | M26: =SUM(M21:M25) -> 90 | N26: =(4+3+2+5+3) -> 17
F27: Общо аудиторна заетост: | K27: =(K26+L26+M26) -> 255
A29: В 6-ти семестър избираемите дисциплини от 1 и 2 група трябва да носят минимум 9.5 кредити
A30: В 7-ти семестър избираемите дисциплини от 1 и 2 група трябва да носят минимум 10 кредити
A31: В 8-ти семестър избираемите дисциплини от 1 и 2 група трябва да носят минимум 14 кредити

Sheet Semester_7
F1: Специалност "Медицинска физика"
A2: код на спец. | F2: за випуска, започнал през 2015 уч.година
A3: № | B3: код на дисциплината | F3: Наименование на учебната дисциплината | G3: Вид – З, И, Ф | H3: семестър | I3: ECTS кредити | J3: Часове - общ брой | N3: Седмична заетост | O3: Форма на оценяване* - и, то, ки, прод
J4: Всичко | K4: Лекции | L4: Семинарни занятия | M4: практически упр. / хоспетиране
A5: 1 | B5: 2 | F5: 3 | G5: 4 | H5: 5 | I5: 6 | J5: 7 | K5: 8 | L5: 9 | M5: 10 | N5: 11 | O5: 12
A6: Задължителни дисциплини
F7: Информационни технологии (директна и мрежова комуникация на апаратура и компютри) | G7: З | H7: 7 | I7: 6 | J7: 180 | K7: 45 | L7: 0 | M7: 30 | N7: 3 0 2 | O7: и
F8: Теоретична физика - 3 (Термодинамика и статистическа физика ) | G8: З | H8: 7 | I8: 5 | J8: 150 | K8: 30 | L8: 30 | M8: 0 | N8: 2 2 0 | O8: и
F9: Дозиметрия и лъчезащита | G9: З | H9: 7 | I9: 7.5 | J9: 225 | K9: 45 | L9: 0 | M9: 45 | N9: 3 03 | O9: и
H10: Сума: | I10: =SUM(I7:I9) -> 18.5 | J10: =SUM(J7:J9) -> 555 | K10: =SUM(K7:K9) -> 120 | L10: =SUM(L7:L9) -> 30 | M10: =SUM(M7:M9) -> 75 | N10: =(5+4+6) -> 15
F11: Общо аудиторна заетост: | K11: =(K10+L10+M10) -> 225
F14: Специалност "Медицинска физика"
A15: код на спец. | F15: за випуска, започнал през 2015 уч.година
A16: № | B16: код на дисциплината | F16: Наименование на учебната дисциплината | G16: Вид – З, И, Ф | H16: семестър | I16: ECTS кредити | J16: Часове - общ брой | N16: Седмична заетост | O16: Форма на оценяване* - и, то, ки, прод
J17: Всичко | K17: Лекции | L17: Семинарни занятия | M17: практически упр. / хоспетиране
A18: 1 | B18: 2 | F18: 3 | G18: 4 | H18: 5 | I18: 6 | J18: 7 | K18: 8 | L18: 9 | M18: 10 | N18: 11 | O18: 12
A19: Задължителни дисциплини
F20: Теоретична физика - 3 (Термодинамика и статистическа физика ) | G20: З | H20: 7 | I20: 5 | J20: 150 | K20: 30 | L20: 30 | M20: 0 | N20: 2 2 0 | O20: и
F21: Дозиметрия и лъчезащита | G21: З | H21: 7 | I21: 7.5 | J21: 225 | K21: 45 | L21: 0 | M21: 45 | N21: 3 0 3 | O21: и
F22: Експериментални методи на ядрената физика в медицината | G22: З | H22: 7 | I22: 7.5 | J22: 225 | K22: 45 | L22: 0 | M22: 45 | N22: 3 0 3 | O22: и
H24: Сума: | I24: =SUM(I20:I23) -> 20 | J24: =SUM(J20:J23) -> 600 | K24: =SUM(K20:K23) -> 120 | L24: =SUM(L20:L23) -> 30 | M24: =SUM(M20:M23) -> 90 | N24: =(4+6+6) -> 16
F25: Общо аудиторна заетост: | K25: =(K24+L24+M24) -> 240
A27: В 6-ти семестър избираемите дисциплини от 1 и 2 група трябва да носят минимум 9.5 кредити
A28: В 7-ти семестър избираемите дисциплини от 1 и 2 група трябва да носят минимум 10 кредити
A29: В 8-ти семестър избираемите дисциплини от 1 и 2 група трябва да носят минимум 14 кредити

Sheet Semester_8
F2: Специалност "Медицинска физика"
A3: код на спец. | F3: за випуска, започнал през 2015 уч.година
A4: № | B4: код на дисциплината | F4: Наименование на учебната дисциплината | G4: Вид – З, И, Ф | H4: семестър | I4: ECTS кредити | J4: Часове - общ брой | N4: Седмична заетост | O4: Форма на оценяване* - и, то, ки, прод
J5: Всичко | K5: Лекции | L5: Семинарни занятия | M5: практически упр. / хоспетиране
A6: 1 | B6: 2 | F6: 3 | G6: 4 | H6: 5 | I6: 6 | J6: 7 | K6: 8 | L6: 9 | M6: 10 | N6: 11 | O6: 12
A7: Задължителни дисциплини
F8: Ускорители и детектори на йонизиращи лъчения в медицината | G8: З | H8: 8 | I8: 6 | J8: 180 | K8: 45 | L8: 30 | M8: 0 | N8: 3 2 0 | O8: и
H9: Сума: | I9: =SUM(I8:I8) -> 6 | J9: =SUM(J8:J8) -> 180 | K9: =SUM(K8:K8) -> 45 | L9: =SUM(L8:L8) -> 30 | M9: =SUM(M8:M8) -> 0 | N9: 5
F10: Общо аудиторна заетост: | K10: =(K9+L9+M9) -> 75
A12: В 6-ти семестър избираемите дисциплини от 1 и 2 група трябва да носят минимум 9.5 кредити
A13: В 7-ти семестър избираемите дисциплини от 1 и 2 група трябва да носят минимум 10 кредити
A14: В 8-ти семестър избираемите дисциплини от 1 и 2 група трябва да носят минимум 14 кредити

Sheet Izbiraemi_discpilini
F1: Специалност "Медицинска физика"
A2: код на спец. | F2: за випуска, започнал през 2015 уч.година
A3: № | B3: код на дисциплината | F3: Наименование на учебната дисциплината | G3: Вид – З, И, Ф | H3: семестър | I3: ECTS кредити | J3: Часове - общ брой | N3: Седмична заетост | O3: Форма на оценяване* - и, то, ки, прод
J4: Всичко | K4: Лекции | L4: Семинарни занятия | M4: практически упр. / хоспетиране
A5: 1 | B5: 2 | F5: 3 | G5: 4 | H5: 5 | I5: 6 | J5: 7 | K5: 8 | L5: 9 | M5: 10 | N5: 11 | O5: 12
A6: Избираеми дисциплини 1 група
A7: 1 | F7: Моделиране на взаимодействието на биологични молекули | G7: И | H7: 6_8 | I7: 5 | J7: 150 | K7: 30 | L7: 0 | M7: 30 | N7: 2 0 2 | O7: и
F8: Физични фактори – биологично действие и защита | G8: И | H8: 6_8 | I8: 5 | J8: 150 | K8: 30 | L8: 0 | M8: 30 | N8: 2 0 2 | O8: то
F9: Медицински електронни уреди | G9: И | H9: 6_8 | I9: 5 | J9: 150 | K9: 30 | L9: 0 | M9: 30 | N9: 2 0 2 | O9: и
F10: Биомембрани и биосензори | G10: И | H10: 7 | I10: 5 | J10: 150 | K10: 30 | L10: 0 | M10: 30 | N10: 2 0 2 | O10: то
F11: Радиоелектронни методи в медицината | G11: И | H11: 7 | I11: 5 | J11: 150 | K11: 30 | L11: 0 | M11: 30 | N11: 2 0 2 | O11: и
F12: Оптическа спектроскопия в медицината | G12: И | H12: 7 | I12: 5 | J12: 150 | K12: 30 | L12: 0 | M12: 30 | N12: 2 0 2 | O12: и
F13: Оптични инструменти и измервания в медицината | G13: И | H13: 8 | I13: 6 | J13: 180 | K13: 45 | L13: 0 | M13: 30 | N13: 3 0 2 | O13: и
F14: Радиационна биофизика и лъчезащита | G14: И | H14: 8 | I14: 7,5 | J14: 225 | K14: 45 | L14: 0 | M14: 45 | N14: 3 0 3 | O14: и
F15: Въздействие на електромагнитното излъчване върху човешкия организъм | G15: И | H15: 8 | I15: 5 | J15: 150 | K15: 30 | L15: 15 | M15: 15 | N15: 2 1 1 | O15: и
F16: Метрология на не йонизиращите лъчения | G16: И | H16: 8 | I16: 5 | J16: 150 | K16: 30 | L16: 0 | M16: 30 | N16: 2 0 2 | O16: и
F17: Молекулна биофизика | G17: И | H17: 8 | I17: 6 | J17: 180 | K17: 45 | L17: 30 | M17: 0 | N17: 3 2 0 | O17: и
A18: Избираеми дисциплини 2 група
F19: Интегрална електроника | G19: И | H19: 6 | I19: 3 | J19: 90 | K19: 45 | L19: 0 | M19: 0 | N19: 3 0 0 | O19: и
F20: Лабораторен практикум Интегрална електроника | G20: И | H20: 6 | I20: 4,5 | J20: 135 | K20: 0 | L20: 0 | M20: 45 | N20: 3 0 0 | O20: то
F21: Комуникационни технологии | G21: И | H21: 8 | I21: 6 | J21: 180 | K21: 45 | L21: 15 | M21: 15 | N21: 3 1 1 | O21: и
F22: Програмиране в UNIX среда | G22: И | H22: 6_8 | I22: 2 | J22: 60 | K22: 30 | L22: 0 | M22: 0 | N22: 2 0 0 | O22: и
F23: Практикум програмиране в UNIX среда | G23: И | H23: 6_8 | I23: 4,5 | J23: 135 | K23: 0 | L23: 0 | M23: 45 | N23: 0 0 3 | O23: то
F24: Ядрена електроника | G24: И | H24: 7 | I24: 6 | J24: 225 | K24: 45 | L24: 0 | M24: 45 | N24: 3 0 3 | O24: и
F25: Ядрени реакции за медицинска физика | G25: И | H25: 7 | I25: 4,5 | J25: 135 | K25: 45 | L25: 15 | M25: 0 | N25: 3 1 0 | O25: и
F26: Моделиране в крайномерни системи | G26: И | H26: 7 | I26: 5 | J26: 150 | K26: 30 | L26: 0 | M26: 30 | N26: 2 0 2 | O26: и
F27: Физика на кондензираната материя | G27: И | H27: 8 | I27: 5,5 | J27: 150 | K27: 60 | L27: 15 | M27: 0 | N27: 3 1 0 | O27: и
F28: Физика на лазерите: видове лазери | G28: И | H28: 8 | I28: 5 | J28: 90 | K28: 30 | L28: 0 | M28: 45 | N28: 2 0 1 | O28: и
A31: Учебни практики и курсови работи
A32: № | B32: код | F32: Наименование на практиката | G32: Вид – З, И, Ф | H32: Семестър | I32: ECTS - кредити | J32: Седмици | K32: Часове | L32: Форма на контрол* - и, то, ки
F33: Учебна преддипломна практика в медицинско заведение | G33: И | H33: 8 | I33: 4 | J33: 2 | K33: 120 | L33: то

Sheet Fak_Kursovi_zashtita
F1: Специалност "Медицинска физика"
A2: код на спец. | F2: за випуска, започнал през 2015 уч.година
A3: № | B3: код на дисциплината | F3: Наименование на учебната дисциплината | G3: Вид – З, И, Ф | H3: семестър | I3: ECTS кредити | J3: Часове - общ брой | N3: Седмична заетост | O3: Форма на оценяване* - и, то, ки, прод
J4: Всичко | K4: Лекции | L4: Семинарни занятия | M4: практически упр. / хоспетиране
A5: 1 | B5: 2 | F5: 3 | G5: 4 | H5: 5 | I5: 6 | J5: 7 | K5: 8 | L5: 9 | M5: 10 | N5: 11 | O5: 12
A6: Факултативни дисциплини - минимален брой ............. кредита
F7: Увод в университестката математика | G7: Ф | H7: 1 | I7: 4 | J7: 60 | K7: 30 | L7: 30 | M7: 0 | N7: 2 2 0
F8: Увод в университестката физика | G8: Ф | H8: 1 | I8: 1 | J8: 30 | K8: ? | L8: ? | M8: ? | N8: 0 0 2
F9: Спорт | G9: Ф | H9: 1 | I9: 1 | J9: 30 | N9: 0 0 2
F10: Спорт | G10: Ф | H10: 2 | I10: 1 | J10: 30 | N10: 0 0 2
F11: Спорт | G11: Ф | H11: 3 | I11: 1 | J11: 30 | N11: 0 0 2
F12: Език | G12: Ф | H12: 3 | I12: 1,5 | J12: 45 | N12: 0 0 2
F13: Спорт | G13: Ф | H13: 4 | I13: 1 | J13: 30 | N13: 0 0 2
F14: Език | G14: Ф | H14: 4 | I14: 1,5 | J14: 45 | N14: 0 0 2
A17: Учебни практики и курсови работи
A18: № | B18: код | F18: Наименование на практиката | G18: Вид – З, И, Ф | H18: Семестър | I18: ECTS - кредити | J18: Седмици | K18: Часове | L18: Форма на контрол* - и, то, ки
F19: Учебна преддипломна практика в медицинско заведение | G19: И | H19: 8 | I19: 4 | J19: 2 | K19: 120 | L19: то
A22: Дипломиране
A23: Начин на дипломиране | H23: ECTS - кредити | I23: Първа държавна сесия | K23: Втора държавна сесия
A24: Защита на дипломна работа | H24: 10 | I24: юли | K24: септември
A26: Учебният план е приет на заседание на Факултетен съвет с протокол № ............... от ....................................................
F28: ДЕКАН:.........................

Sheet Izvlechenie
A1: Софийски университет "Св. Климент Охридски"
A2: Справка - извлечение от учебен план
A3: Специалност "Медицинска физика" , ОКС "бакалавър"
A4: форма на обучение редовна , срок на обучение 8 семестъра
A5: Натовареност, ECTS-кредити и оценки по семестри
A6: Вид заетост | B6: I | E6: IІ семестър | H6: IІІ семестър | K6: ІV семестър | N6: V семестър | Q6: VI семестър | T6: VII семестър | W6: VIII семестър | Z6: Общо
B7: натоваре-ност (ч.) | C7: ECTS – кредити | D7: бр.оценки | E7: натоваре-ност (ч.) | F7: ECTS – кредити | G7: бр.оценки | H7: натоваре-ност (ч.) | I7: ECTS – кредити | J7: бр.оценки | K7: натоваре-ност (ч.) | L7: ECTS – кредити | M7: бр.оценки | N7: натоваре-ност (ч.) | O7: ECTS – кредити | P7: бр.оценки | Q7: натоваре-ност (ч.) | R7: ECTS – кредити | S7: бр.оценки | T7: натоваре-ност (ч.) | U7: ECTS – кредити | V7: бр.оценки | W7: натоваре-ност (ч.) | X7: ECTS – кредити | Y7: бр.оценки | Z7: натоваре-ност (ч.) | AA7: ECTS – кредити | AB7: бр.оценки | AD7: =SUM(AD8:AD10) -> 230
A8: Задължителни дисциплини | B8: 900 | C8: 30 | D8: 5 | E8: 900 | F8: 30 | G8: 4 | H8: 900 | I8: 30 | J8: 5 | K8: 900 | L8: 30 | M8: 6 | N8: 900 | O8: 30 | P8: 7 | Q8: 615 | R8: 20.5 | S8: 5 | T8: 600 | U8: 20 | V8: 3 | W8: 180 | X8: 6 | Y8: 1 | Z8: 5895 | AA8: 196.5 | AB8: 36 | AC8: =(B8+E8+H8+K8+N8+Q8+T8+W8) -> 5895 | AD8: 196.5 | AE8: 36
A9: мин. избираеми дисциплини | B9: 0 | C9: 0 | D9: 0 | E9: 0 | F9: 0 | G9: 0 | H9: 0 | I9: 0 | J9: 0 | K9: 0 | L9: 0 | M9: 0 | N9: 0 | O9: 0 | P9: 0 | Q9: 285 | R9: 9.5 | S9: 1 | T9: 300 | U9: 10 | V9: 2 | W9: 720 | X9: 14 | Y9: 3 | Z9: 1305 | AA9: 33.5 | AB9: 6 | AC9: 1305 | AD9: 33.5 | AE9: 6
A10: учебни практики | B10: 0 | C10: 0 | D10: 0 | E10: 0 | F10: 0 | G10: 0 | H10: 0 | I10: 0 | J10: 0 | K10: 0 | L10: 0 | M10: 0 | N10: 0 | O10: 0 | P10: 0 | Q10: 0 | R10: 0 | S10: 0 | T10: 0 | U10: 0 | V10: 0 | W10: 120 | X10: 0 | Y10: 1 | Z10: 120 | AA10: 4 | AB10: 1 | AC10: 120 | AD10: 0 | AE10: 1
A11: Общо: | B11: 900 | C11: 30 | D11: 5 | E11: 900 | F11: 30 | G11: 4 | H11: 900 | I11: 30 | J11: 5 | K11: 900 | L11: 30 | M11: 6 | N11: 900 | O11: 30 | P11: 7 | Q11: 900 | R11: 30 | S11: 6 | T11: 900 | U11: 30 | V11: 5 | W11: 1020 | X11: 30 | Y11: 5 | Z11: 7320 | AA11: 244 | AB11: 43 | AC11: 7320 | AD11: 240 | AE11: 43
A13: Начин на дипломиране | Q13: ECTS - кредити | T13: брой часове за подготовка | W13: Първа държавна сесия | Z13: Втора държавна сесия
A14: Защита на дипломна работа | Q14: 10 | T14: 300 | W14: юли | Z14: септември
A16: Придобита професионална квалификация: | Q16: Бакалавър по медицинска физика
A18: № на решението на ФС: | X18: Декан:
U19: проф. дфн Ал. Драйшу
